bitfinex/quotes_BTCUSD_20250102
["timestamp","ask_amount","ask_price","bid_price","bid_amount"]
[1735844680969,0.0144345,97439.0,97438.0,2.37598134]
[1735844681116,0.0154345,97439.0,97438.0,2.37498134]
[1735844682597,0.0244345,97439.0,97438.0,2.37598134]
[1735844685571,0.0245199,97439.0,97438.0,2.37598134]
[1735844687493,9e-07,97439.0,97438.0,2.49898134]
[1735844687715,9e-07,97439.0,97438.0,2.57638134]
[1735844688339,9e-07,97439.0,97438.0,2.47638134]
[1735844688544,9e-07,97439.0,97438.0,2.57638134]
[1735844690842,9e-07,97439.0,97438.0,2.55338134]
[1735844697986,9e-07,97439.0,97438.0,2.55355214]
[1735844698169,9e-07,97439.0,97438.0,2.57655214]
[1735844700532,9e-07,97439.0,97438.0,2.47655214]
[1735844700760,9e-07,97439.0,97438.0,2.57655214]
[1735844700961,0.01193976,97450.0,97449.0,0.555235]
[1735844701160,0.01193976,97450.0,97449.0,0.65922132]
[1735844701586,0.01193976,97450.0,97449.0,2.15922132]
[1735844702166,0.02093976,97450.0,97449.0,2.16022132]
[1735844702794,0.02093976,97450.0,97449.0,2.16122132]
[1735844703251,0.02093976,97450.0,97449.0,2.26122132]
[1735844703443,0.11892726,97474.0,97465.0,0.1]
[1735844703674,0.11892726,97474.0,97470.0,0.20519]
[1735844703851,0.01921723,97473.0,97470.0,0.20519]
[1735844704052,0.01921723,97473.0,97472.0,1.5]
[1735844704470,0.11892726,97474.0,97473.0,0.205185]
[1735844704669,0.11892726,97474.0,97470.0,0.20519]
[1735844704869,0.13964365,97474.0,97470.0,0.20519]
[1735844705046,0.13964365,97474.0,97473.0,1.5]
[1735844705251,0.11941734,97474.0,97473.0,1.5]
[1735844705659,0.12041734,97474.0,97473.0,1.509]
[1735844705878,0.13964586,97474.0,97473.0,1.509]
[1735844706685,0.13964586,97474.0,97473.0,1.518]
[1735844707304,0.13964586,97474.0,97473.0,1.62198632]
[1735844707503,0.0207186,97474.0,97473.0,1.71298632]
[1735844707651,0.0197186,97474.0,97473.0,1.71298632]
[1735844707848,0.00049008,97474.0,97473.0,1.72198632]
[1735844708302,0.00049008,97474.0,97473.0,1.86298632]
[1735844708710,0.00049008,97474.0,97473.0,1.85398632]
[1735844708885,0.00049008,97474.0,97473.0,1.85598632]
[1735844709558,0.00057558,97474.0,97473.0,1.85498632]
[1735844709741,0.00057558,97474.0,97473.0,1.85398632]
[1735844710035,0.00057558,97474.0,97473.0,1.85498632]
[1735844711559,0.00057558,97474.0,97473.0,1.85598632]
[1735844711911,0.00057558,97474.0,97473.0,1.85498632]
[1735844712363,0.00057558,97474.0,97473.0,1.85598632]
[1735844713436,0.00057558,97474.0,97473.0,1.502]
[1735844713649,0.12697558,97474.0,97473.0,1.502]
[1735844714680,0.12697558,97474.0,97473.0,1.501]
[1735844714854,0.14618914,97474.0,97473.0,1.502]
[1735844715400,0.14618914,97474.0,97473.0,1.501]
[1735844715741,0.14618914,97474.0,97473.0,1.51]
[1735844716159,0.14618914,97474.0,97473.0,1.509]
[1735844716412,0.15118914,97474.0,97473.0,1.509]
[1735844716787,0.14618914,97474.0,97473.0,1.509]
[1735844716987,0.14618914,97474.0,97473.0,0.009]
[1735844717319,0.14718914,97474.0,97473.0,0.018]
[1735844717523,0.14718914,97474.0,97473.0,1.518]
[1735844718920,0.27417546,97474.0,97473.0,1.3899]
[1735844719121,0.045,97456.0,97444.0,0.205244]
[1735844719325,0.205222,97455.0,97440.0,0.15]
[1735844719525,0.205222,97455.0,97440.0,0.10398632]
[1735844719729,0.205233,97450.0,97438.0,0.0001708]
[1735844719935,0.045,97456.0,97445.0,1.5]
[1735844720153,0.01920291,97449.0,97445.0,1.5]
[1735844720761,0.205229,97452.0,97445.0,1.5]
[1735844720958,0.007,97450.0,97445.0,1.5]
[1735844721157,0.205235,97449.0,97445.0,1.5]
[1735844721939,0.007,97450.0,97445.0,1.5]
[1735844722282,0.007,97450.0,97446.0,0.205241]
[1735844722283,0.001,97449.0,97446.0,0.205241]
[1735844722487,0.001,97449.0,97448.0,0.1]
[1735844722685,0.001,97449.0,97448.0,1.70398632]
[1735844723117,0.002,97449.0,97448.0,1.70398632]
[1735844723368,0.08923646,97460.0,97459.0,0.205214]
[1735844723584,0.08923646,97460.0,97449.0,0.205235]
[1735844723776,0.205189,97471.0,97456.0,0.20522]
[1735844723979,0.205189,97471.0,97470.0,1.5]
[1735844724547,0.205208,97462.0,97449.0,0.205235]
[1735844724744,0.205189,97471.0,97450.0,0.10398632]
[1735844724945,0.01917895,97471.0,97458.0,0.205214]
[1735844725150,0.01917895,97471.0,97460.0,0.205212]
[1735844725348,0.01917895,97471.0,97470.0,0.008]
[1735844725547,0.205187,97472.0,97470.0,0.008]
[1735844726083,0.205187,97472.0,97471.0,1.5]
[1735844727274,0.206187,97472.0,97471.0,1.509]
[1735844728081,0.22536178,97472.0,97471.0,1.509]
[1735844728286,0.22536178,97472.0,97471.0,1.517]
[1735844729203,0.22536178,97472.0,97471.0,0.017]
[1735844730872,0.22536178,97472.0,97471.0,1.517]
[1735844732009,0.22536178,97472.0,97471.0,1.517171]
[1735844733805,0.02017478,97472.0,97471.0,1.517171]
[1735844734209,0.02017478,97472.0,97471.0,1.517131]
[1735844734544,0.001,97472.0,97471.0,1.517131]
[1735844735541,0.001,97472.0,97471.0,0.017131]
[1735844736083,0.001,97472.0,97471.0,1.517131]
[1735844736289,0.001,97472.0,97471.0,1.72232]
[1735844736483,0.001,97472.0,97471.0,1.80262]
[1735844736804,0.001,97472.0,97471.0,1.90660632]
[1735844737217,0.001,97472.0,97471.0,2.04860632]
[1735844737627,0.04995,97475.0,97473.0,0.355185]
[1735844737848,0.04995,97475.0,97473.0,0.50737132]
[1735844738427,0.04995,97475.0,97473.0,2.00737132]
[1735844740211,0.04995,97475.0,97473.0,2.00837132]
[1735844740835,0.04995,97475.0,97473.0,2.00937132]
[1735844743042,0.04995,97475.0,97473.0,1.85937132]
[1735844743237,0.04995,97475.0,97473.0,1.81117132]
[1735844745376,0.04995,97475.0,97473.0,1.502]
[1735844745521,0.04995,97475.0,97473.0,0.002]
[1735844746124,0.04995,97475.0,97473.0,0.001]
[1735844746323,0.04995,97475.0,97473.0,0.31017132]
[1735844746527,0.04995,97475.0,97473.0,0.30917132]
[1735844746728,0.04995,97475.0,97473.0,0.53657132]
[1735844746932,0.00157558,97474.0,97473.0,2.19557132]
[1735844747133,0.00057558,97474.0,97473.0,2.18657132]
[1735844747313,0.00057558,97474.0,97473.0,2.19557132]
[1735844748614,0.00157558,97474.0,97473.0,2.20457132]
[1735844749022,0.00157558,97474.0,97473.0,2.19557132]
[1735844749422,0.00157558,97474.0,97473.0,2.19757132]
[1735844749642,0.00157558,97474.0,97473.0,2.20868877]
[1735844749853,0.00157558,97474.0,97473.0,2.20668877]
[1735844750058,0.01057558,97474.0,97473.0,2.20768877]
[1735844750266,0.00957558,97474.0,97473.0,2.14007132]
[1735844750466,0.01857558,97474.0,97473.0,2.14107132]
[1735844751088,0.01857558,97474.0,97473.0,1.502]
[1735844751293,0.01857558,97474.0,97473.0,1.707185]
[1735844753019,0.01857558,97474.0,97473.0,1.502]
[1735844755844,0.01857558,97474.0,97473.0,1.707185]
[1735844756261,0.01857558,97474.0,97473.0,1.89397132]
[1735844757475,0.01857558,97474.0,97473.0,1.90464748]
[1735844758470,0.01857558,97474.0,97473.0,1.89397132]
[1735844760712,0.01857558,97474.0,97473.0,1.707185]
[1735844760969,0.01857558,97474.0,97473.0,1.81117132]
[1735844762342,0.01857558,97474.0,97473.0,1.96117132]
[1735844762515,0.01857558,97474.0,97473.0,2.03617132]
[1735844762723,0.01857558,97474.0,97473.0,2.0947164]
[1735844766933,0.00957558,97474.0,97473.0,2.0937164]
[1735844767274,0.01857558,97474.0,97473.0,2.0947164]
[1735844767478,0.00957558,97474.0,97473.0,2.0937164]
[1735844767659,0.00957558,97474.0,97473.0,2.0947164]
[1735844767866,0.01757558,97474.0,97473.0,2.0947164]
[1735844768284,0.00957558,97474.0,97473.0,2.0937164]
[1735844768592,0.01757558,97474.0,97473.0,2.0947164]
[1735844768952,0.00757558,97474.0,97473.0,2.1947164]
[1735844769600,0.00757558,97474.0,97473.0,2.2177164]
[1735844770042,0.00757558,97474.0,97473.0,2.2167164]
[1735844770251,0.00757558,97474.0,97473.0,2.72482248]
[1735844770456,0.04995,97475.0,97474.0,0.273]
[1735844770457,0.04600758,97475.0,97474.0,0.273]
[1735844770624,4.8e-05,97481.0,97480.0,0.53527]
[1735844770849,4.8e-05,97481.0,97480.0,0.84215632]
[1735844770984,4.8e-05,97481.0,97480.0,0.99215632]
[1735844771193,4.8e-05,97481.0,97480.0,2.49215632]
[1735844771404,1e-06,97481.0,97480.0,2.51515632]
[1735844771617,1e-06,97481.0,97480.0,2.65383832]
[1735844772657,0.006001,97481.0,97480.0,2.80931773]
[1735844773068,0.006001,97481.0,97480.0,2.81031773]
[1735844773215,0.006001,97481.0,97480.0,2.64863573]
[1735844773622,0.006001,97481.0,97480.0,2.39415632]
[1735844773824,0.006001,97481.0,97480.0,2.29415632]
[1735844774030,0.006001,97481.0,97480.0,2.39415632]
[1735844774225,0.006001,97481.0,97480.0,2.29415632]
[1735844774496,0.006001,97481.0,97480.0,2.39415632]
[1735844778448,0.006001,97481.0,97480.0,2.51715632]
[1735844779050,0.006001,97481.0,97480.0,2.29415632]
[1735844779253,0.006001,97481.0,97480.0,2.39415632]
[1735844779635,0.006001,97481.0,97480.0,2.39432732]
[1735844782497,0.006001,97481.0,97480.0,2.49432732]
[1735844782710,0.006001,97481.0,97480.0,2.51732732]
[1735844782877,8.55e-05,97485.0,97484.0,0.405161]
[1735844783088,0.00057745,97517.0,97499.0,0.4794]
[1735844783344,0.00057745,97517.0,97511.0,0.35]
[1735844783478,0.00057745,97517.0,97511.0,2.43709132]
[1735844784084,0.0144345,97535.0,97511.0,2.43709132]
[1735844784544,0.0144345,97535.0,97511.0,2.43723808]
[1735844784742,0.0144345,97535.0,97511.0,2.62624747]
[1735844784941,0.0144345,97535.0,97511.0,2.62724747]
[1735844785292,0.0144345,97535.0,97533.0,0.2]
[1735844785491,0.0144345,97535.0,97533.0,0.78904432]
[1735844785694,0.0144345,97535.0,97533.0,0.93904432]
[1735844785898,0.0144345,97535.0,97533.0,2.43904432]
[1735844786692,0.0144345,97535.0,97533.0,2.44004432]
[1735844786915,0.0144345,97535.0,97533.0,2.43904432]
[1735844787232,0.0144345,97535.0,97533.0,2.44004432]
[1735844787738,0.0144345,97535.0,97533.0,2.48954432]
[1735844788855,0.01441324,97535.0,97534.0,0.15]
[1735844789011,0.01441324,97535.0,97534.0,0.25398632]
[1735844789428,0.01441324,97535.0,97534.0,1.75398632]
[1735844790231,0.01441324,97535.0,97534.0,1.75498632]
[1735844790435,0.01441324,97535.0,97534.0,1.75598632]
[1735844790995,0.01441324,97535.0,97534.0,1.75498632]
[1735844792678,0.01441324,97535.0,97534.0,1.75398632]
[1735844792976,0.01441324,97535.0,97534.0,1.75498632]
[1735844793179,0.01441324,97535.0,97534.0,1.75398632]
[1735844793584,0.01441324,97535.0,97534.0,1.75498632]
[1735844795118,0.01441324,97535.0,97534.0,1.75494632]
[1735844795327,8.54e-05,97537.0,97535.0,0.205054]
[1735844795529,8.54e-05,97537.0,97536.0,0.10398632]
[1735844795888,8.54e-05,97537.0,97536.0,1.60398632]
[1735844797252,8.54e-05,97537.0,97536.0,1.75498632]
[1735844799392,4e-07,97537.0,97536.0,1.75498632]
[1735844800737,4e-07,97537.0,97536.0,1.85498632]
[1735844801152,4e-07,97537.0,97536.0,1.87798632]
[1735844801544,9e-07,97548.0,97547.0,0.505029]
[1735844801721,8.55e-05,97572.0,97561.0,0.554999]
[1735844801920,8.55e-05,97572.0,97561.0,0.94368532]
[1735844802129,8.55e-05,97572.0,97561.0,2.44368532]
[1735844802329,7e-07,97562.0,97561.0,2.44368532]
[1735844802528,7e-07,97562.0,97561.0,2.61318532]
[1735844802769,7e-07,97562.0,97561.0,2.71333208]
[1735844802971,7e-07,97562.0,97561.0,2.71433208]
[1735844803304,7e-07,97562.0,97561.0,2.71333208]
[1735844803840,7e-07,97562.0,97561.0,2.71433208]
[1735844804038,7e-07,97562.0,97561.0,2.74605493]
[1735844804615,7e-07,97562.0,97561.0,2.90054362]
[1735844805568,7e-07,97562.0,97561.0,2.64605493]
[1735844805770,7e-07,97562.0,97561.0,2.74605493]
[1735844806187,7e-07,97562.0,97561.0,2.74505493]
[1735844806522,7e-07,97562.0,97561.0,2.74605493]
[1735844806719,8.55e-05,97572.0,97571.0,0.554978]
[1735844806924,8.55e-05,97572.0,97571.0,0.65896432]
[1735844807329,8.55e-05,97572.0,97571.0,2.15896432]
[1735844807730,8.55e-05,97572.0,97571.0,2.15996432]
[1735844808986,8.55e-05,97572.0,97571.0,2.17083829]
[1735844810497,8.55e-05,97572.0,97571.0,2.15996432]
[1735844811076,8.55e-05,97572.0,97571.0,2.15896432]
[1735844811476,8.55e-05,97572.0,97571.0,2.16096432]
[1735844814137,8.55e-05,97572.0,97571.0,2.15996432]
[1735844814338,8.55e-05,97572.0,97571.0,2.15896432]
[1735844814570,0.0090855,97572.0,97571.0,2.15996432]
[1735844814776,0.0150855,97572.0,97571.0,2.16096432]
[1735844820056,0.0150855,97572.0,97571.0,2.06096432]
[1735844826273,0.0150855,97572.0,97571.0,1.85598632]
[1735844826474,0.0150855,97572.0,97571.0,1.652]
[1735844827202,0.0090855,97572.0,97571.0,1.651]
[1735844827408,8.55e-05,97572.0,97571.0,1.5]
[1735844827633,8.55e-05,97572.0,97571.0,1.501]
[1735844827791,0.0050855,97572.0,97571.0,1.502]
[1735844828002,0.2100615,97572.0,97571.0,1.502]
[1735844828205,0.35713691,97572.0,97571.0,0.002]
[1735844828414,0.204997,97562.0,97561.0,0.00031756]
[1735844828604,0.216497,97562.0,97561.0,0.00031756]
[1735844828814,0.2212323,97562.0,97561.0,0.00031756]
[1735844829064,0.24040771,97562.0,97561.0,0.00031756]
[1735844830548,0.24240771,97562.0,97561.0,0.01331756]
[1735844831269,0.24140771,97562.0,97561.0,0.00631756]
[1735844831406,0.24240771,97562.0,97561.0,0.01331756]
[1735844831871,0.1,97560.0,97542.0,1.5]
[1735844832042,0.1,97560.0,97542.0,1.50014685]
[1735844832243,0.205004,97559.0,97542.0,1.50014685]
[1735844832450,0.205022,97551.0,97542.0,1.50014685]
[1735844833797,0.205022,97551.0,97542.0,1.50414685]
[1735844834023,0.205025,97549.0,97542.0,1.50414685]
[1735844834531,0.00468206,97548.0,97542.0,1.50414685]
[1735844835296,0.205018,97553.0,97542.0,1.50414685]
[1735844835491,0.00468195,97547.0,97542.0,1.50414685]
[1735844835695,0.004,97549.0,97544.0,0.205035]
[1735844835854,0.205012,97555.0,97542.0,0.10014685]
[1735844836052,0.003,97548.0,97542.0,0.10214685]
[1735844836254,0.003,97548.0,97547.0,1.5]
[1735844836512,0.205012,97555.0,97547.0,1.5]
[1735844837495,0.205022,97551.0,97547.0,1.5]
[1735844837696,0.205022,97551.0,97547.0,1.505]
[1735844837969,0.410044,97551.0,97547.0,0.005]
[1735844838120,0.0741,97550.0,97547.0,0.005]
[1735844838321,0.0481,97548.0,97547.0,0.005]
[1735844838670,0.0451,97548.0,97547.0,0.005]
[1735844838956,0.205037,97543.0,97542.0,0.00014685]
[1735844839576,0.205037,97543.0,97542.0,0.00031765]
[1735844839982,0.22415832,97543.0,97542.0,0.00031765]
[1735844840128,0.32515832,97543.0,97542.0,0.00031765]
[1735844840329,0.32615832,97543.0,97542.0,0.00031765]
[1735844840568,0.39925832,97543.0,97542.0,0.00031765]
[1735844840776,0.42325832,97543.0,97542.0,0.00031765]
[1735844840977,0.53781659,97543.0,97542.0,0.00031765]
[1735844843036,0.43383027,97543.0,97542.0,0.00631765]
[1735844843421,0.31083027,97543.0,97542.0,0.00631765]
[1735844844200,0.31083027,97543.0,97542.0,1.50631765]
[1735844844383,0.43383027,97543.0,97542.0,0.00631765]
[1735844845715,0.53781659,97543.0,97542.0,0.00631765]
[1735844846581,0.68815997,97543.0,97542.0,0.00631765]
[1735844846793,0.305054,97535.0,97534.0,0.0001708]
[1735844846997,0.43204032,97535.0,97534.0,0.00031772]
[1735844847117,0.14610764,97535.0,97534.0,0.00031772]
[1735844847323,0.24610764,97535.0,97534.0,0.00031772]
[1735844847519,0.45116164,97535.0,97534.0,0.00031772]
[1735844847766,0.7478129,97535.0,97534.0,7.2e-07]
[1735844847975,0.7478129,97535.0,97486.0,0.0472]
[1735844847976,0.205135,97497.0,97495.0,1.5]
[1735844848185,0.51264,97497.0,97495.0,1.5]
[1735844848542,0.21029824,97496.0,97495.0,1.5]
[1735844849068,0.00516224,97496.0,97495.0,1.5]
[1735844849449,0.00516224,97496.0,97495.0,1.70398632]
[1735844849648,0.001,97496.0,97495.0,1.70398632]
[1735844850080,0.51264,97497.0,97496.0,0.205136]
[1735844850249,0.51264,97497.0,97496.0,0.30912232]
[1735844850468,0.51264,97497.0,97495.0,1.5]
[1735844850835,0.51264,97497.0,97496.0,0.205136]
[1735844851892,0.51264,97497.0,97496.0,1.705136]
[1735844852498,0.51364,97497.0,97496.0,1.705136]
[1735844852708,0.5201869,97497.0,97496.0,1.705136]
[1735844854019,0.5201869,97497.0,97496.0,1.5]
[1735844855000,0.51464,97497.0,97496.0,1.5]
[1735844855203,0.5201869,97497.0,97496.0,1.5]
[1735844855770,0.205136,97496.0,97486.0,0.205304]
[1735844856072,0.00554684,97495.0,97486.0,0.205264]
[1735844856401,0.205136,97496.0,97488.0,1.5]
[1735844856602,0.0054612,97494.0,97488.0,1.5]
[1735844856845,0.205136,97496.0,97488.0,1.5]
[1735844857058,0.0054612,97493.0,97488.0,1.5]
[1735844857231,0.205136,97496.0,97488.0,1.5]
[1735844857232,0.206136,97496.0,97488.0,1.5]
[1735844857395,0.410294,97491.0,97488.0,1.5]
[1735844857596,0.51264,97497.0,97488.0,1.5]
[1735844857799,0.0054612,97490.0,97488.0,1.5]
[1735844857998,0.001,97496.0,97488.0,1.5]
[1735844858212,0.2105992,97495.0,97488.0,1.5]
[1735844858415,0.0054612,97495.0,97494.0,0.1]
[1735844858620,0.51364,97497.0,97494.0,0.38548632]
[1735844858866,0.51364,97497.0,97496.0,0.1497]
[1735844859068,0.51364,97497.0,97496.0,1.75368632]
[1735844859313,0.51264,97497.0,97496.0,1.75368632]
[1735844859658,0.51264,97497.0,97496.0,1.5497]
[1735844860033,0.5181488,97497.0,97496.0,1.5497]
[1735844860464,0.5171488,97497.0,97496.0,1.5497]
[1735844860651,0.5261488,97497.0,97496.0,1.5497]
[1735844861242,0.5351488,97497.0,97496.0,1.5507]
[1735844861772,0.5261488,97497.0,97496.0,1.5497]
[1735844861971,0.5261488,97497.0,97496.0,1.5507]
[1735844862504,0.5351488,97497.0,97496.0,1.5517]
[1735844862856,0.5351488,97497.0,97496.0,1.75568632]
[1735844863110,0.5351488,97497.0,97496.0,1.75585732]
[1735844863679,0.5351488,97497.0,97496.0,1.98735732]
[1735844863873,0.018,97497.0,97496.0,1.98735732]
[1735844864087,8.55e-05,97534.0,97531.0,0.305062]
[1735844864485,8.55e-05,97534.0,97531.0,0.510124]
[1735844864741,8.55e-05,97534.0,97533.0,0.205058]
[1735844865043,8.55e-05,97534.0,97533.0,0.30904432]
[1735844865363,8.55e-05,97534.0,97533.0,0.30919132]
[1735844865568,0.0010855,97534.0,97533.0,1.80919132]
[1735844866622,0.0020855,97534.0,97533.0,1.81819132]
[1735844867007,0.0010855,97534.0,97533.0,1.81819132]
[1735844867410,0.0020855,97534.0,97533.0,1.82719132]
[1735844867919,0.0020855,97534.0,97533.0,1.518147]
[1735844868096,0.0020855,97534.0,97533.0,0.018147]
[1735844869605,0.02124084,97534.0,97533.0,0.018147]
[1735844874655,0.02124084,97534.0,97533.0,0.12213332]
[1735844875002,0.0020855,97534.0,97533.0,1.62213332]
[1735844877273,0.0020855,97534.0,97533.0,1.87810739]
[1735844877599,0.0020855,97534.0,97533.0,1.72213332]
[1735844877799,0.0020855,97534.0,97533.0,1.518147]
[1735844878648,0.0020855,97534.0,97533.0,0.018147]
[1735844878844,0.12807182,97534.0,97533.0,0.009147]
[1735844879014,0.023,97531.0,97507.0,0.1]
[1735844879254,0.205067,97529.0,97502.0,0.09130972]
[1735844879438,0.023,97527.0,97502.0,0.09130972]
[1735844879644,0.205107,97510.0,97502.0,0.09130972]
[1735844879877,0.205107,97510.0,97502.0,0.00014712]
[1735844880088,0.01914995,97509.0,97502.0,0.00014712]
[1735844880289,0.205119,97505.0,97502.0,0.00014712]
[1735844880467,0.410238,97505.0,97502.0,0.00014712]
[1735844880845,0.02575742,97504.0,97502.0,0.00014712]
[1735844881007,0.02575742,97504.0,97502.0,0.00114712]
[1735844881213,0.205121,97503.0,97502.0,0.00114712]
[1735844881413,0.22427619,97503.0,97502.0,0.00014712]
[1735844881616,0.23087848,97503.0,97502.0,0.00114712]
[1735844882278,0.23087848,97503.0,97502.0,0.00214712]
[1735844882484,0.23087848,97503.0,97502.0,0.00114712]
[1735844882886,0.23987848,97503.0,97502.0,0.00214712]
[1735844883092,0.23987848,97503.0,97502.0,0.00114712]
[1735844883296,0.23087848,97503.0,97502.0,0.00014712]
[1735844883528,0.24087848,97503.0,97502.0,0.01014712]
[1735844883930,0.23187848,97503.0,97502.0,0.00914712]
[1735844885083,0.23287848,97503.0,97502.0,0.01814712]
[1735844887714,0.74568848,97503.0,97502.0,0.01814712]
[1735844887854,0.8726748,97503.0,97502.0,0.01814712]
[1735844888058,1.1967748,97503.0,97502.0,0.01814712]
[1735844888480,1.1967748,97503.0,97502.0,0.01831812]
[1735844888881,1.1957748,97503.0,97502.0,0.00931812]
[1735844889105,1.1957748,97503.0,97502.0,0.01731812]
[1735844889327,1.1957748,97503.0,97502.0,1.2e-07]
[1735844889328,1.1967748,97503.0,97502.0,1.2e-07]
[1735844889441,0.1,97487.0,97473.0,0.0001708]
[1735844889670,0.228168,97481.0,97480.0,0.00031829]
[1735844889894,0.85178816,97481.0,97480.0,0.00031829]
[1735844890095,0.87094335,97481.0,97480.0,0.00031829]
[1735844890341,0.84794335,97481.0,97480.0,0.00031829]
[1735844890544,0.74395703,97481.0,97480.0,0.00031829]
[1735844890747,0.74395703,97481.0,97480.0,0.15324757]
[1735844890953,0.53978903,97481.0,97480.0,0.00931829]
[1735844891319,0.53978903,97481.0,97480.0,1.50931829]
[1735844891665,0.53296519,97481.0,97480.0,1.50931829]
[1735844892001,0.52158621,97481.0,97480.0,1.51631829]
[1735844892215,0.52058621,97481.0,97480.0,1.50931829]
[1735844892408,0.52058621,97481.0,97480.0,1.61330461]
[1735844892653,0.52158621,97481.0,97480.0,1.72030461]
[1735844892970,0.51958718,97481.0,97480.0,1.70430461]
[1735844893300,0.52058718,97481.0,97480.0,1.71130461]
[1735844893431,0.52158718,97481.0,97480.0,1.71830461]
[1735844893830,0.52058718,97481.0,97480.0,1.71130461]
[1735844894238,0.52958718,97481.0,97480.0,1.71230461]
[1735844894435,0.52958718,97481.0,97480.0,1.98900461]
[1735844894868,0.52958718,97481.0,97480.0,2.25144807]
[1735844895070,0.52858718,97481.0,97480.0,2.09557761]
[1735844895300,0.53081,97481.0,97480.0,2.09557761]
[1735844895452,0.53761418,97481.0,97480.0,2.09557761]
[1735844895647,0.45051418,97481.0,97480.0,2.09557761]
[1735844896004,0.44371,97481.0,97480.0,2.09457761]
[1735844896173,0.43471,97481.0,97480.0,2.09457761]
[1735844896376,0.44371,97481.0,97480.0,2.25382382]
[1735844896575,0.40271,97481.0,97480.0,2.25382382]
[1735844896748,0.39371,97481.0,97480.0,2.25282382]
[1735844896944,0.205098,97515.0,97506.0,0.1]
[1735844897157,0.00680494,97514.0,97507.0,0.205113]
[1735844897383,0.205089,97519.0,97507.0,0.205113]
[1735844897779,0.205092,97517.0,97508.0,1.5]
[1735844898633,0.205103,97512.0,97508.0,1.5]
[1735844898832,0.023,97526.0,97494.0,0.1]
[1735844898990,0.023,97524.0,97495.0,0.30912432]
[1735844899185,0.205098,97514.0,97495.0,0.10398632]
[1735844899391,0.205122,97503.0,97495.0,0.10398632]
[1735844899596,0.205115,97507.0,97494.0,0.1]
[1735844899818,0.205115,97507.0,97494.0,0.20398632]
[1735844900025,0.205079,97523.0,97507.0,0.2]
[1735844900232,0.205079,97523.0,97508.0,0.10398632]
[1735844900430,0.21084943,97522.0,97508.0,0.30909632]
[1735844900653,0.21084943,97522.0,97510.0,0.205107]
[1735844900904,0.00576743,97522.0,97510.0,0.205107]
[1735844901125,0.007,97524.0,97511.0,0.205105]
[1735844901300,0.007,97524.0,97516.0,0.205094]
[1735844901515,0.00576463,97523.0,97516.0,0.205094]
[1735844901871,0.205063,97531.0,97518.0,0.20509]
[1735844902076,8.55e-05,97533.0,97532.0,0.20506]
[1735844902255,8.55e-05,97533.0,97532.0,1.70506]
[1735844902886,8.55e-05,97533.0,97532.0,1.5]
[1735844904168,0.0090855,97533.0,97532.0,1.501]
[1735844904389,0.0090855,97533.0,97532.0,1.60498632]
[1735844904692,0.0090855,97533.0,97532.0,1.70498632]
[1735844905123,0.0140855,97533.0,97532.0,1.85498632]
[1735844905323,0.0140855,97533.0,97532.0,1.95498632]
[1735844905538,0.0090855,97533.0,97532.0,1.95498632]
[1735844905685,0.0180855,97533.0,97532.0,1.95598632]
[1735844905884,0.0090855,97533.0,97532.0,1.95398632]
[1735844906093,8.55e-05,97533.0,97532.0,1.95398632]
[1735844906293,0.0180855,97533.0,97532.0,1.95598632]
[1735844907180,0.0090855,97533.0,97532.0,1.95498632]
[1735844907916,0.0180855,97533.0,97532.0,1.95598632]
[1735844908118,0.0180855,97533.0,97532.0,1.95498632]
[1735844908635,0.0270855,97533.0,97532.0,1.652]
[1735844908836,0.0270855,97533.0,97532.0,0.002]
[1735844909243,0.0270855,97533.0,97532.0,1.502]
[1735844909590,0.0180855,97533.0,97532.0,1.70498632]
[1735844909903,0.0180855,97533.0,97532.0,2.03758632]
[1735844909904,0.0270855,97533.0,97532.0,2.03758632]
[1735844910226,0.0270855,97533.0,97532.0,1.93758632]
[1735844916742,0.0270855,97533.0,97532.0,1.68758632]
[1735844917320,0.0270855,97533.0,97532.0,1.502]
[1735844917493,0.0270855,97533.0,97532.0,1.50196]
[1735844918706,0.0270855,97533.0,97532.0,0.00196]
[1735844918861,0.03301242,97533.0,97532.0,0.00196]
[1735844919060,0.03301242,97533.0,97532.0,0.00096]
[1735844919061,0.02401242,97533.0,97532.0,0.00096]
[1735844919265,0.205088,97519.0,97518.0,1.5]
[1735844919783,0.21130637,97519.0,97518.0,1.5]
[1735844919985,0.41639437,97519.0,97496.0,0.1]
[1735844920260,0.41639437,97519.0,97489.0,0.1798]
[1735844920411,0.41639437,97519.0,97501.0,1.5]
[1735844920778,0.2279369,97517.0,97501.0,1.5]
[1735844920938,0.33192322,97517.0,97485.0,0.1]
[1735844921142,0.33814074,97517.0,97516.0,0.00314729]
[1735844921548,0.33814074,97517.0,97516.0,0.00014729]
[1735844921745,0.35724638,97517.0,97516.0,0.00314729]
[1735844922146,0.35724638,97517.0,97516.0,0.00014729]
[1735844922345,0.45824638,97517.0,97516.0,0.00314729]
[1735844922569,0.45924638,97517.0,97516.0,0.00314729]
[1735844923346,0.45824638,97517.0,97516.0,0.00314729]
[1735844923733,0.23126006,97517.0,97516.0,0.00314729]
[1735844924211,0.23026006,97517.0,97516.0,0.00014729]
[1735844924679,0.23126006,97517.0,97516.0,0.00014729]
[1735844924923,0.33226006,97517.0,97516.0,0.00914729]
[1735844925629,0.45924638,97517.0,97516.0,0.00914729]
[1735844926746,0.53584638,97517.0,97516.0,0.00914729]
[1735844926947,1.19857638,97517.0,97516.0,2.9e-07]
[1735844929122,0.84499006,97517.0,97516.0,2.9e-07]
[1735844929330,0.18366135,97531.0,97517.0,0.537084]
[1735844929551,0.18366135,97531.0,97530.0,0.505065]
[1735844929760,0.18366135,97531.0,97530.0,0.60905132]
[1735844929968,0.18366135,97531.0,97530.0,0.30398632]
[1735844930210,0.18366135,97531.0,97526.0,0.305072]
[1735844930454,8.55e-05,97533.0,97529.0,0.1]
[1735844930666,0.009,97531.0,97530.0,0.001]
[1735844930868,8.55e-05,97533.0,97529.0,0.1]
[1735844931076,8.55e-05,97533.0,97530.0,0.205065]
[1735844931283,0.009,97531.0,97530.0,0.206065]
[1735844931503,8.55e-05,97533.0,97530.0,0.205065]
[1735844931884,0.009,97531.0,97530.0,0.41113]
[1735844932122,0.009,97531.0,97530.0,0.61511632]
[1735844932332,0.009,97531.0,97530.0,0.61611632]
[1735844932709,0.009,97531.0,97530.0,0.61511632]
[1735844933114,0.018,97531.0,97530.0,0.61611632]
[1735844933251,0.009,97531.0,97530.0,0.61511632]
[1735844933657,0.009,97531.0,97530.0,0.61611632]